fUSD/lending_fUSD_20240414
["ID","MTS","AMOUNT","RATE_DAILY","PERIOD"]
[322568437,1713072640831,-4803.0,0.00024648,2]
[322568438,1713072640841,-2466.0,0.00024648,2]
[322568439,1713072640851,-37623.0,0.00024648,2]
[322568440,1713072640861,-1377.673,0.00024648,2]
[322568441,1713072640870,-1000.0,0.00024766,2]
[322568442,1713072640880,-1998.95566924,0.000248,2]
[322568443,1713072640890,-563.08685838,0.00025,2]
[322568444,1713072640900,-1399.65881744,0.00025,2]
[322568445,1713072640910,-155.0,0.00025,2]
[322568446,1713072640919,-173.8791187,0.00025,2]
[322568447,1713072640929,-2605.45039561,0.00025,2]
[322568448,1713072640939,-155.0,0.00025,2]
[322568449,1713072640949,-1000.0,0.00025,4]
[322568450,1713072640960,-600.0,0.00025,3]
[322568451,1713072640969,-323787.0,0.00025,2]
[322568452,1713072640978,-155.54,0.0002518,2]
[322568453,1713072640987,-1340.0,0.000252,2]
[322568454,1713072640997,-180.64,0.00025278,2]
[322568455,1713072641006,-17651.0,0.000254,3]
[322568456,1713072641017,-167.11,0.00025437,2]
[322568457,1713072641026,-1298.44,0.00025495,2]
[322568458,1713072641036,-17651.0,0.000259,5]
[322568459,1713072641046,-1000.0,0.00026,5]
[322568460,1713072641056,-1000.0,0.00026,5]
[322568461,1713072641066,-1644.79633,0.00026,2]
[322568462,1713072641075,-155.54,0.0002614,2]
[322568463,1713072641089,-72291.98621831,0.000265,2]
[322568464,1713072641099,-301.12,0.00026825,2]
[322568465,1713072641109,-1000.0,0.00027,6]
[322568466,1713072641118,-650.0,0.00027,3]
[322568467,1713072641129,-155.54,0.000271,2]
[322568468,1713072641138,-167.11,0.00027236,2]
[322568469,1713072641148,-263.44133956,0.00027397,2]
[322568470,1713072641157,-172.41,0.00027397,2]
[322568471,1713072641169,-151.15,0.00027397,2]
[322568472,1713072641179,-151.13,0.00027397,2]
[322568473,1713072641188,-167.0,0.00027473,2]
[322568474,1713072641199,-1000.0,0.00027517,2]
[322568475,1713072641210,-608.0,0.00027648,2]
[322568476,1713072641220,-810.541,0.00027648,2]
[322568477,1713072641230,-436.0,0.00027648,2]
[322568478,1713072641239,-307.665,0.00027648,2]
[322568479,1713072641250,-443.0,0.00027648,2]
[322568480,1713072641260,-214.0,0.00027648,2]
[322568481,1713072641270,-355.0,0.00027648,2]
[322568482,1713072641280,-5719.0,0.00027648,2]
[322568483,1713072641290,-4803.0,0.00027648,2]
[322568484,1713072641300,-2466.0,0.00027648,2]
[322568485,1713072641310,-7653.098,0.00027648,2]
[322568486,1713072641320,-236.54991,0.00027945,14]
[322568487,1713072641329,-20189.0893382,0.00028,2]
[322568488,1713072641340,-680.12,0.00028,2]
[322568489,1713072641350,-1298.44,0.00028235,2]
[322568490,1713072641360,-167.0,0.0002838,2]
[322568491,1713072641370,-942.84,0.000284,2]
[322568492,1713072641380,-157.041513,0.00028748,8]
[322568493,1713072641390,-37527.0,0.00028754,2]
[322568494,1713072641400,-236.54991,0.00028767,14]
[322568495,1713072641410,-157.041513,0.00028948,8]
[322568496,1713072641421,-500000.0,0.00029,2]
[322568497,1713072641431,-562.05444632,0.00029,2]
[322568498,1713072641441,-6750.20773336,0.00029,2]
[322568499,1713072641452,-700.0,0.00029,3]
[322568500,1713072641464,-150.96,0.00029,2]
[322568501,1713072641476,-150.96,0.00029,2]
[322568502,1713072641486,-150.96,0.00029,2]
[322568503,1713072641497,-150.96,0.00029,2]
[322568504,1713072641710,-150.96,0.00029,2]
[322568505,1713072641720,-150.96,0.00029,2]
[322568506,1713072641732,-150.96,0.00029,2]
[322568507,1713072641742,-150.96,0.00029,2]
[322568508,1713072641753,-150.96,0.00029,2]
[322568509,1713072641764,-150.96,0.00029,2]
[322568510,1713072641775,-150.96,0.00029,2]
[322568511,1713072641785,-150.96,0.00029,2]
[322568512,1713072641794,-150.96,0.00029,2]
[322568513,1713072641803,-150.96,0.00029,2]
[322568514,1713072641815,-150.96,0.00029,2]
[322568515,1713072641826,-150.96,0.00029,2]
[322568516,1713072641836,-150.96,0.00029,2]
[322568517,1713072641846,-150.96,0.00029,2]
[322568518,1713072641856,-150.96,0.00029,2]
[322568519,1713072641867,-150.96,0.00029,2]
[322568520,1713072641877,-150.96,0.00029,2]
[322568521,1713072641889,-150.96,0.00029,2]
[322568522,1713072641900,-150.96,0.00029,2]
[322568523,1713072641910,-150.96,0.00029,2]
[322568524,1713072641922,-150.96,0.00029,2]
[322568525,1713072641933,-150.96,0.00029,2]
[322568526,1713072641943,-150.96,0.00029,2]
[322568527,1713072641954,-150.96,0.00029,2]
[322568528,1713072641964,-150.96,0.00029,2]
[322568529,1713072641974,-150.96,0.00029,2]
[322568530,1713072641984,-150.96,0.00029,2]
[322568531,1713072641995,-150.96,0.00029,2]
[322568532,1713072642005,-150.96,0.00029,2]
[322568533,1713072642015,-150.96,0.00029,2]
[322568534,1713072642026,-150.96,0.00029,2]
[322568535,1713072642037,-150.96,0.00029,2]
[322568536,1713072642048,-150.96,0.00029,2]
[322568537,1713072642057,-150.96,0.00029,2]
[322568538,1713072642068,-150.96,0.00029,2]
[322568539,1713072642077,-150.96,0.00029,2]
[322568540,1713072642087,-150.96,0.00029,2]
[322568541,1713072642102,-150.96,0.00029,2]
[322568542,1713072642113,-167.11,0.00029035,2]
[322568543,1713072642123,-301.12,0.00029089,2]
[322568544,1713072642134,-157.041513,0.00029148,9]
[322568545,1713072642145,-167.0,0.00029287,2]
[322568546,1713072642156,-157.041513,0.00029348,9]
[322568547,1713072642167,-1095.19752066,0.000294,2]
[322568548,1713072642179,-150.0,0.000294,2]
[322568549,1713072642189,-442.25500705,0.000295,3]
[322568550,1713072642200,-157.041513,0.00029548,9]
[322568551,1713072642212,-236.54991,0.00029589,14]
[322568552,1713072642223,-157.041513,0.00029748,10]
[322568553,1713072642234,-150.0,0.000299,2]
[322568554,1713072642244,-157.041513,0.00029948,10]
[322568555,1713072642255,-205.72513863,0.0003,3]
[322568556,1713072642265,-6945.86910959,0.0003,2]
[322568557,1713072642276,-4927.55619612,0.0003,7]
[322568558,1713072642287,-16137.42961867,0.0003,3]
[322568559,1713072642297,-19327.24766397,0.0003,4]
[322568560,1713072642307,-420.91017053,0.0003,2]
[322568561,1713072642316,-5672.99698819,0.0003,2]
[322568562,1713072642326,-155.0,0.0003,2]
[322568563,1713072642337,-2970.07961376,0.0003,4]
[322568564,1713072642346,-1139741.67881277,0.0003,2]
[322568613,1713072642824,-541.0,0.00024648,2]
[322568617,1713072642834,-152.56339039,0.0003,2]
[322568632,1713072642901,-1304.1205797,0.0003,2]
[322568634,1713072642912,-1524.99390006,0.0003,2]
[322568639,1713072642959,-1648.7578289,0.0003,2]
[322568658,1713072643135,-1725.59317765,0.0003,2]
[322568664,1713072644722,-1228.0,0.00024648,2]
[322568665,1713072644738,-541.0,0.00027648,2]
[322568666,1713072644754,-677.17411381,0.0003,2]
[322568667,1713072645916,-14064.05000027,0.0003,2]
[322568677,1713072648798,-155.0,0.00024647,2]
[322568678,1713072648808,-1244.13,0.00024648,2]
[322568679,1713072648818,-1228.0,0.00027648,2]
[322568680,1713072648828,-190556.41165259,0.0003,2]
[322568681,1713072648944,-356.4561,0.0003,2]
[322568702,1713073831983,-406.02769257,0.00021,2]
[322568703,1713073832091,-239.52985906,0.00021,2]
[322568704,1713073832101,-140.50900798,0.000214,2]
[322568705,1713073832114,-2365.71554263,0.000214,2]
[322568706,1713073832127,-371.77544939,0.000214,2]
[322568707,1713073832137,-784.24043551,0.00022,2]
[322568708,1713073832147,-550.0,0.00023,3]
[322568709,1713073832157,-590.39915225,0.0002402,2]
[322568710,1713073832171,-2417.96473999,0.0002402,2]
[322568711,1713073832181,-150.0,0.00024767,2]
[322568712,1713073832194,-1972.62661938,0.000248,2]
[322568754,1713073838074,-26.32904986,0.000248,2]
[322568755,1713073838085,-150.0,0.00024999,2]
[322568756,1713073838096,-600.0,0.00025,3]
[322568757,1713073838106,-499.99,0.00025,2]
[322568758,1713073838115,-563.08685838,0.00025,2]
[322568759,1713073838125,-155.0,0.00025,2]
[322568760,1713073838135,-309.48379567,0.00025546,2]
[322568761,1713073838144,-818.06,0.00025547,2]
[322568762,1713073838154,-150.0,0.00025548,2]
[322568763,1713073838164,-1228.0,0.00025548,2]
[322568764,1713073838173,-541.0,0.00025548,2]
[322568765,1713073838183,-436.0,0.00025548,2]
[322568766,1713073838195,-608.0,0.00025548,2]
[322568767,1713073838204,-355.0,0.00025548,2]
[322568768,1713073838213,-214.0,0.00025548,2]
[322568769,1713073838223,-4803.0,0.00025548,2]
[322568770,1713073838233,-267.982,0.00025548,2]
[322568771,1713073838242,-816.064,0.00025548,2]
[322568772,1713073838252,-193.636,0.00025548,2]
[322568773,1713073838262,-1963.85,0.00025548,2]
[322568774,1713073838272,-760.64455069,0.00025548,2]
[322568954,1713073840147,-406.34244931,0.00025548,2]
[322568956,1713073840159,-157.822,0.00025548,2]
[322568958,1713073840170,-151.442,0.00025548,2]
[322568960,1713073840181,-225.84,0.00025606,2]
[322568963,1713073840198,-376.41,0.00026647,2]
[322568965,1713073840209,-225.47519718,0.00026996,2]
[322568967,1713073840219,-650.0,0.00027,3]
[322568969,1713073840231,-295.85,0.00027397,2]
[322568971,1713073840241,-163.78,0.00027397,2]
[322568973,1713073840251,-250.0,0.00027492,2]
[322568975,1713073840262,-250.0,0.00027553,2]
[322568977,1713073840272,-400.0,0.00027632,2]
[322568979,1713073840282,-225.84,0.0002787,2]
[322568982,1713073840294,-20189.0893382,0.00028,2]
[322568983,1713073840304,-600.0,0.00028411,2]
[322568984,1713073840313,-430.626,0.00028548,2]
[322568985,1713073840324,-541.0,0.00028548,2]
[322568986,1713073840334,-289.95,0.00028548,2]
[322568987,1713073840344,-355.0,0.00028548,2]
[322568988,1713073840354,-311.63950046,0.00028548,2]
[322568989,1713073840404,-285.39249954,0.00028548,2]
[322568990,1713073840414,-259.64689963,0.00028548,2]
[322568991,1713073840809,-794.35310037,0.00028548,2]
[322568992,1713073840819,-150.0,0.00028548,2]
[322568993,1713073840829,-1956.57599283,0.00029,2]
[322568994,1713073840842,-730.81457759,0.00029,2]
[322568995,1713073840854,-4062.81716294,0.00029,2]
[322568996,1713073840864,-562.05444632,0.00029,2]
[322568997,1713073840874,-700.0,0.00029,3]
[322568998,1713073840884,-1647.0,0.00029,2]
[322568999,1713073840894,-1028.54413247,0.000294,2]
[322569000,1713073840904,-150.0,0.000294,2]
[322569001,1713073840915,-442.25500705,0.000295,3]
[322569002,1713073840925,-2737.48193084,0.00029521,2]
[322569003,1713073840940,-1432.03316604,0.00029712,2]
[322569004,1713073840959,-307.42,0.00029712,2]
[322569036,1713073843145,-158.501,0.00025548,2]
[322569037,1713073843155,-176.228,0.00025548,2]
[322569038,1713073843164,-790.08795055,0.00029712,2]
[322569045,1713073844192,-207.94081425,0.00029712,2]
[322569046,1713073844210,-100.25918558,0.00029899,2]
[322569047,1713073844231,-284.94999994,0.00029899,2]
[322569048,1713073844308,-606.68216756,0.00029899,2]
[322569049,1713073844334,-67.11554692,0.00029899,2]
[322569050,1713073844348,-500.0,0.00029899,2]
[322569051,1713073844371,-15914.8645,0.00029899,2]
[322569052,1713073844386,-1254.77407159,0.00029899,2]
[322569053,1713073844402,-174.70329806,0.000299,2]
[322569054,1713073844417,-150.0,0.000299,2]
[322569055,1713073844433,-418.99118759,0.000299,10]
[322569064,1713073846869,-281.00881241,0.000299,10]
[322569065,1713073846878,-536.31632741,0.00029996,7]
[322569066,1713073846888,-183.64166018,0.00029998,2]
[322569067,1713073846911,-375.67183846,0.00029998,2]
[322569068,1713073846920,-780.12140715,0.00029999,2]
[322569069,1713073846933,-3637.4999995,0.00029999,2]
[322569072,1713073984671,225.0,0.0002099,15]
[322569073,1713073984995,214.0,0.0002099,15]
[322569074,1713073985036,289.0,0.0002099,15]
[322569075,1713073985206,225.0,0.0002098,15]
[322569076,1713073985485,214.0,0.0002098,15]
[322569077,1713073985517,289.0,0.0002098,15]
[322569078,1713073985744,225.0,0.0002097,15]
[322569079,1713073985950,214.0,0.0002097,15]
[322569080,1713073986202,289.0,0.0002097,15]
[322569081,1713073986330,225.0,0.0002099,15]
[322569082,1713073986463,214.0,0.0002099,15]
[322569083,1713073986702,289.0,0.0002099,15]
[322569084,1713073986932,225.0,0.0002098,15]
[322569085,1713073987162,214.0,0.0002098,15]
[322569086,1713073987379,289.0,0.0002098,15]
[322569087,1713073987480,225.0,0.0002097,15]
[322569088,1713073987672,214.0,0.0002097,15]
[322569089,1713073988080,289.0,0.0002097,15]
[322569090,1713073988867,225.0,0.0002099,15]
[322569091,1713073989042,289.0,0.0002099,15]
[322569092,1713073989245,225.0,0.0002098,15]
[322569093,1713073989446,289.0,0.0002098,15]
[322569094,1713073989564,214.0,0.0002099,15]
[322569095,1713073989884,225.0,0.0002099,15]
[322569096,1713073989966,214.0,0.0002098,15]
[322569097,1713073990062,225.3,0.0002098,15]
[322569098,1713073990143,214.0,0.0002099,15]
[322569099,1713073990192,289.0,0.0002099,15]
[322569100,1713073990556,214.5,0.0002098,15]
[322569101,1713073990613,295.5,0.0002098,15]
[322569104,1713074104667,254.0,0.0002099,15]
[322569105,1713074105122,254.0,0.0002098,15]
[322569106,1713074105609,254.0,0.0002097,15]
[322569107,1713074106127,254.0,0.0002099,15]
[322569108,1713074106642,254.0,0.0002098,15]
[322569109,1713074107123,254.0,0.0002097,15]
[322569110,1713074107622,254.0,0.0002099,15]
[322569111,1713074108116,254.0,0.0002098,15]
[322569112,1713074108596,254.0,0.0002099,15]
[322569113,1713074109791,254.25,0.0002098,15]
[322569114,1713074267684,197.8196799,0.00019948,2]
[322569115,1713074270996,958.03622523,0.00019931,2]
[322569116,1713074274429,755.38884212,0.00018898,2]
[322569117,1713074276102,344.85759974,0.00016784,2]
[322569118,1713074279115,1005.05401767,0.00015749,2]
[322569119,1713074279758,408.03329043,0.00019948,2]
[322569120,1713074280948,1308.58983327,0.00019948,2]
[322569121,1713074282442,2538.14948095,0.00015735,2]
[322569122,1713074285923,187.01,0.00016712,2]
[322569123,1713074289407,1035.18121822,0.00019948,2]
[322569124,1713074291430,20147.70779413,0.00019948,2]
[322569125,1713074291958,323.35440399,0.00019948,2]
[322569126,1713074292681,323.54057448,0.00019948,2]
[322569127,1713074293822,1151.18313438,0.00019948,2]
[322569128,1713074293849,550.0,0.00019948,2]
[322569129,1713074293872,550.0,0.00019948,2]
[322569130,1713074293894,150.0,0.00019948,2]
[322569131,1713074293919,17251.49917285,0.00019948,2]
[322569132,1713074294037,155.0,0.00019948,2]
[322569133,1713074297529,42544.52953478,0.00019948,2]
[322569134,1713074299336,435.69470741,0.00019948,2]
[322569135,1713074299679,408.03329043,0.00019948,2]
[322569136,1713074300013,7491.48135887,0.00019948,2]
[322569137,1713074300367,2538.14948095,0.00014961,2]
[322569138,1713074302733,288.09495201,0.00019948,2]
[322569139,1713074302800,300.67307603,0.00019948,2]
[322569140,1713074306781,298.16949323,0.00019948,2]
[322569141,1713074307407,1035.18121822,0.00019948,2]
[322569142,1713074307847,19652.68230723,0.00019948,2]
[322569143,1713074308094,155.0,0.00019948,2]
[322569144,1713074308667,350.25700919,0.00019948,2]
[322569145,1713074313428,4450.48755634,0.00019948,2]
[322569146,1713074313533,42544.52953478,0.00019948,2]
[322569147,1713074314033,7491.48135887,0.00019948,2]
[322569148,1713074315332,435.69470741,0.00019948,2]
[322569149,1713074320139,162.16,0.00028161,120]
[322569150,1713074320180,408.03329043,0.00019948,2]
[322569151,1713074320230,1834.42679964,0.00014961,2]
[322569152,1713074320361,288.09495201,0.00019948,2]
[322569154,1713074324813,300.67307603,0.00019948,2]
[322569155,1713074326050,155.0,0.00019948,2]
[322569156,1713074328475,19652.68230723,0.00019948,2]
[322569157,1713074331716,1039.58865057,0.00019948,2]
[322569158,1713074334030,6594.02969946,0.00019948,2]
[322569159,1713074335346,552.46763519,0.00019948,2]
[322569160,1713074335592,42544.52953478,0.00019948,2]
[322569161,1713074336738,288.23054803,0.00019948,2]
[322569162,1713074339691,221.62900102,0.00019948,2]
[322569163,1713074342829,300.67307603,0.00019948,2]
[322569164,1713074343337,155.0,0.00020998,60]
[322569165,1713074345102,166.05944673,0.00020998,30]
[322569166,1713074345852,19652.68230723,0.00019948,2]
[322569167,1713074346047,155.0,0.00019948,2]
[322569168,1713074355543,42544.52953478,0.00019948,2]
[322569169,1713074361479,300.67307603,0.00019948,2]
[322569170,1713074361683,155.0,0.00020998,60]
[322569171,1713074362063,155.0,0.00019948,2]
[322569172,1713074363861,5851.5197941,0.00019948,2]
[322569173,1713074373546,42544.52953478,0.00019948,2]
[322569174,1713074376849,300.67307603,0.00019948,2]
[322569175,1713074380058,252.17275942,0.00019948,2]
[322569176,1713074381250,155.0,0.00020998,60]
[322569177,1713074389548,33693.80270243,0.00019948,2]
[322569178,1713074392864,377.6928073,0.00019948,2]
[322569179,1713074399290,155.0,0.00020998,60]
[322569180,1713074417280,155.0,0.00020998,60]
[322569181,1713074438024,155.0,0.00020998,60]
[322569182,1713074440836,1816.88597235,0.00026462,28]
[322569183,1713074459950,155.0,0.00020998,60]
[322569184,1713074465677,153.3,0.0002099,15]
[322569185,1713074584396,151.66,0.0002099,15]
[322569186,1713074584590,50.60402765,0.0002099,15]
[322569187,1713074584618,101.88597235,0.0002099,15]
[322569188,1713074584723,150.5,0.0002099,15]
[322569189,1713074585207,150.5,0.0002098,15]
[322569190,1713074585664,154.81,0.0002097,15]
[322569191,1713074586364,150.5,0.0002099,15]
[322569192,1713074586476,150.5,0.0002099,15]
[322569193,1713074586861,150.5,0.0002098,15]
[322569194,1713074586960,152.02,0.0002098,15]
[322569195,1713074587336,152.91,0.0002097,15]
[322569196,1713074634534,12579.17956838,0.00019954,2]
[322569197,1713074723606,500.0,0.00019946,2]
[322569198,1713074746355,460.79,0.00018005,2]
[322569199,1713074757595,187.01,0.00016712,2]
[322569200,1713074766357,1494.16,0.00019796,2]
[322569201,1713074816827,23900.0,0.00019782,2]
[322569202,1713074825831,600.0,0.000199,7]
[322569203,1713074827952,1300.0,0.0002,7]
[322569204,1713074831068,1900.0,0.000201,7]
[322569205,1713074832159,2600.0,0.000202,7]
[322569206,1713074834232,3300.0,0.000203,7]
[322569207,1713074836320,600.0,0.000204,7]
[322569208,1713074838409,600.0,0.000205,7]
[322569209,1713074840698,600.0,0.000206,7]
[322569210,1713074842984,600.0,0.000207,7]
[322569211,1713074844879,1200.0,0.000208,7]
[322569212,1713074890148,6363.3,0.00019794,2]
[322569216,1713074916588,566.37,0.00019799,2]
[322569220,1713074931510,500.0,0.00019796,2]
[322569224,1713074964425,2259.37,0.00019814,2]
[322569225,1713074965404,257.0,0.00029998,60]
[322569226,1713074974010,572.35,0.00019814,2]
[322569227,1713074999677,746.03,0.00019821,2]
[322569228,1713075003678,150.0,0.00019821,2]
[322569230,1713075024074,731.91,0.00019824,2]
[322569262,1713075032343,-1802.36005013,0.0002,2]
[322569263,1713075032444,-644.7,0.0002,2]
[322569264,1713075032567,-259.1,0.0002,2]
[322569265,1713075032586,-287.37338502,0.0002,2]
[322569267,1713075032605,-3.382852,0.0002,2]
[322569269,1713075032620,-904.04274901,0.00020001,2]
[322569272,1713075032635,-200.0,0.00020008,2]
[322569273,1713075032651,-165.66,0.00020049,2]
[322569275,1713075032667,-11589.25264404,0.00020055,2]
[322569439,1713075039870,-385.86735596,0.00020055,2]
[322569441,1713075039882,-509.73334727,0.00020106,2]
[322569445,1713075039910,-2112.18665273,0.00020106,2]
[322569447,1713075039920,-165.66,0.00020198,2]
[322569449,1713075039931,-460.79,0.00020269,2]
[322569451,1713075039942,-376.41,0.00020274,2]
[322569453,1713075039953,-150.99,0.00020274,2]
[322569455,1713075039963,-236.54991,0.00020274,2]
[322569457,1713075039973,-150.99,0.00020347,2]
[322569459,1713075039983,-165.66,0.00020347,2]
[322569461,1713075039992,-250.0,0.00020356,2]
[322569463,1713075040001,-155.54,0.0002039,2]
[322569465,1713075040010,-165.66,0.00020496,2]
[322569468,1713075040019,-165.66,0.00020646,2]
[322569470,1713075040028,-165.66,0.00020795,2]
[322569472,1713075040037,-7250.02101249,0.000208,2]
[322569477,1713075040073,-671.46348751,0.000208,2]
[322569480,1713075040082,-99.92051249,0.000208,2]
[322569482,1713075040098,-1750.91781476,0.000208,2]
[322569484,1713075040108,-1850.83832725,0.00020811,2]
[322569485,1713075040117,-1850.83832725,0.00020822,2]
[322569486,1713075040126,-1850.83832725,0.00020833,2]
[322569488,1713075040136,-1850.83832725,0.00020844,2]
[322569490,1713075040145,-1850.83832725,0.00020856,2]
[322569491,1713075040154,-1850.83832725,0.00020867,2]
[322569492,1713075040163,-1850.83832725,0.00020878,2]
[322569494,1713075040173,-320.0,0.00020883,2]
[322569496,1713075040182,-1850.83832725,0.00020889,2]
[322569499,1713075040191,-8579.46527776,0.00020898,2]
[322569501,1713075040200,-225.4741,0.00020898,2]
[322569503,1713075040209,-758.3128,0.00020898,2]
[322569505,1713075040218,-8579.46527772,0.00020898,2]
[322569507,1713075040227,-8579.46527772,0.00020898,2]
[322569508,1713075040237,-8579.46527772,0.00020899,2]
[322569510,1713075040247,-8579.46527772,0.00020899,2]
[322569513,1713075040256,-183.07,0.00020899,2]
[322569515,1713075040266,-8579.46527772,0.00020899,2]
[322569517,1713075040276,-8579.46527772,0.00020899,2]
[322569519,1713075040286,-8579.46527772,0.000209,2]
[322569520,1713075040295,-8579.46527772,0.000209,2]
[322569523,1713075040306,-23628.6742,0.000209,2]
[322569525,1713075040315,-1266.04881493,0.000209,2]
[322569527,1713075040325,-8579.46527772,0.000209,2]
[322569529,1713075040335,-1850.83832725,0.000209,2]
[322569531,1713075040344,-215.6373013,0.000209,2]
[322569533,1713075040353,-215.63730117,0.000209,2]
[322569535,1713075040362,-215.63730117,0.000209,2]
[322569537,1713075040371,-215.63730117,0.000209,2]
[322569539,1713075040381,-215.63730117,0.000209,2]
[322569541,1713075040390,-215.63730117,0.000209,2]
[322569543,1713075040399,-215.63730117,0.000209,2]
[322569545,1713075040408,-247.55067966,0.000209,2]
[322569546,1713075040417,-215.63730117,0.000209,2]
[322569548,1713075040428,-215.63730117,0.000209,2]
[322569550,1713075040438,-215.63730117,0.000209,2]
[322569553,1713075040448,-215.63730117,0.000209,2]
[322569554,1713075040458,-215.63730117,0.000209,2]
[322569556,1713075040469,-215.63730117,0.000209,2]
[322569559,1713075040479,-215.63730117,0.000209,2]
[322569560,1713075040489,-215.63730117,0.000209,2]
[322569562,1713075040498,-215.63730117,0.000209,2]
[322569564,1713075040507,-215.63730117,0.000209,2]
[322569566,1713075040516,-215.63730117,0.000209,2]
[322569568,1713075040525,-215.63730117,0.000209,2]
[322569570,1713075040534,-165.66,0.00020944,2]
[322569572,1713075040543,-776.43025442,0.0002098,2]
[322569574,1713075040552,-366.49544915,0.0002098,2]
[322569576,1713075040561,-179.99285702,0.0002098,2]
[322569578,1713075040570,-155.25459208,0.0002098,2]
[322569580,1713075040579,-361.97075248,0.0002098,2]
[322569581,1713075040588,-1376.8357808,0.0002098,2]
[322569582,1713075040597,-157.99,0.00020988,2]
[322569584,1713075040606,-177.46028583,0.0002099,2]
[322569585,1713075040615,-157.99,0.0002099,2]
[322569587,1713075040624,-157.99,0.0002099,2]
[322569588,1713075040632,-157.99,0.0002099,2]
[322569590,1713075040641,-157.99,0.0002099,2]
[322569591,1713075040651,-132601.8005912,0.00020998,2]
[322569593,1713075040660,-410.03069985,0.00020998,2]
[322569594,1713075040669,-786.03244682,0.00020998,2]
[322569596,1713075040678,-296.22461695,0.00020998,2]
[322569598,1713075040687,-5538.11024616,0.00020998,2]
[322569599,1713075040696,-208.40954335,0.00020998,2]
[322569601,1713075040705,-809.96636847,0.00020998,2]
[322569602,1713075040715,-157.24449267,0.00020998,2]
[322569604,1713075040723,-497.16848565,0.00020998,2]
[322569605,1713075040733,-4013.22567488,0.00020999,2]
[322569607,1713075040743,-391.00398377,0.00020999,2]
[322569609,1713075040752,-500.0,0.00020999,2]
[322569610,1713075040761,-454.28208331,0.00020999,2]
[322569611,1713075040770,-468.6474878,0.00020999,2]
[322569613,1713075040779,-10140613.35554324,0.00021,2]
[322569615,1713075040792,-13141276.2216504,0.00021,2]
[322569617,1713075040803,-437.38512397,0.00021,2]
[322569653,1713075041385,-215.63730117,0.000209,2]
[322569655,1713075041394,-157.99,0.0002099,2]
[322569657,1713075041403,-157.99,0.0002099,2]
[322569659,1713075041412,-14868.25683926,0.00021,2]
[322569669,1713075041493,-157.99,0.0002099,2]
[322569671,1713075041502,-187.60538678,0.00021,2]
[322569674,1713075041517,-805.25446509,0.00021,2]
[322569679,1713075041554,-157.99,0.0002099,2]
[322569681,1713075041563,-128911.09346851,0.00021,2]
[322569878,1713075043318,-761.27427382,0.00021,2]
[322569882,1713075043358,-3974.23648026,0.00021,2]
[322569891,1713075043449,-1536.75,0.00021,2]
[322569905,1713075043573,-12894.0,0.00021,2]
[322569911,1713075044069,-4034.70629675,0.00021,2]
[322569954,1713075053462,-2574320.0000002,0.00021,2]
[322569955,1713075057276,-293.44439873,0.00020789,2]
[322569956,1713075057546,-283.89545907,0.000209,2]
[322569957,1713075057566,-2422.6601422,0.00020999,2]
[322569958,1713075058056,-574.25614495,0.00020999,2]
[322569959,1713075058077,-296.92163089,0.00020999,2]